fUSD/lending_fUSD_20250720
["ID","MTS","AMOUNT","RATE_DAILY","PERIOD"]
[373376009,1752976246929,-3359.24,0.00019178,2]
[373376011,1752976246938,-480.0,0.00019178,2]
[373376013,1752976246947,-472.89670567,0.00019178,2]
[373376015,1752976246956,-502.10340743,0.00019178,2]
[373376017,1752976246966,-461.74569349,0.00019178,2]
[373376019,1752976246975,-575.63,0.00019178,2]
[373376021,1752976246985,-465.91837518,0.00019178,2]
[373376023,1752976246995,-480.0,0.00019178,2]
[373376025,1752976247004,-469.11222193,0.00019178,2]
[373376027,1752976247014,-480.0,0.00019178,2]
[373376028,1752976247023,-472.56152096,0.00019178,2]
[373376029,1752976247033,-1971.95,0.00019178,2]
[373376030,1752976247042,-977.88,0.00019178,2]
[373376031,1752976247051,-525.14,0.00019178,2]
[373376032,1752976247061,-151.0,0.00019178,2]
[373376033,1752976247070,-480.0,0.00019178,2]
[373376035,1752976247080,-480.0,0.00019178,2]
[373376037,1752976247089,-151.0,0.00019178,2]
[373376039,1752976247098,-295.283638,0.00019178,2]
[373376041,1752976247107,-474.51686039,0.00019178,2]
[373376043,1752976247117,-465.1325439,0.00019178,2]
[373376045,1752976247126,-469.74003115,0.00019178,2]
[373376047,1752976247136,-480.0,0.00019178,2]
[373376049,1752976247145,-637.77,0.00019178,2]
[373376051,1752976247155,-480.0,0.00019178,2]
[373376053,1752976247165,-994.88,0.00019178,2]
[373376055,1752976247174,-480.0,0.00019178,2]
[373376057,1752976247183,-463.83355884,0.00019178,2]
[373376059,1752976247193,-479.20398935,0.00019178,2]
[373376061,1752976247202,-480.0,0.00019178,2]
[373376063,1752976247211,-462.71240479,0.00019178,2]
[373376065,1752976247221,-465.25075389,0.00019178,2]
[373376067,1752976247230,-470.8243287,0.00019178,2]
[373376069,1752976247239,-480.0,0.00019178,2]
[373376071,1752976247249,-1041.68,0.00019178,2]
[373376073,1752976247258,-682.51,0.00019178,2]
[373376075,1752976247268,-550.63,0.00019178,2]
[373376077,1752976247277,-599.39430963,0.00019178,2]
[373376079,1752976247286,-474.26418518,0.00019178,2]
[373376081,1752976247296,-4039.7,0.00019178,2]
[373376083,1752976247305,-480.0,0.00019178,2]
[373376085,1752976247315,-474.02928744,0.00019178,2]
[373376087,1752976247324,-2203.38,0.00019178,2]
[373376089,1752976247333,-468.93020207,0.00019178,2]
[373376090,1752976247347,-480.0,0.00019178,2]
[373376092,1752976247357,-1000.08,0.00019178,2]
[373376094,1752976247366,-374.01586091,0.00019178,2]
[373376096,1752976247375,-476.69840355,0.00019178,2]
[373376098,1752976247384,-480.0,0.00019178,2]
[373376100,1752976247393,-480.0,0.00019178,2]
[373376102,1752976247403,-1033.57,0.00019178,2]
[373376104,1752976247413,-151.0,0.00019178,2]
[373376105,1752976247422,-151.0,0.00019178,2]
[373376106,1752976247431,-151.0,0.00019178,2]
[373376107,1752976247440,-468.61833553,0.00019178,2]
[373376108,1752976247450,-480.0,0.00019178,2]
[373376109,1752976247459,-151.0,0.00019178,2]
[373376110,1752976247468,-366.00448108,0.00019178,2]
[373376111,1752976247478,-151.0,0.00019178,2]
[373376112,1752976247488,-615.08,0.00019178,2]
[373376113,1752976247497,-151.0,0.00019178,2]
[373376114,1752976247507,-151.0,0.00019178,2]
[373376115,1752976247517,-151.0,0.00019178,2]
[373376116,1752976247526,-480.0,0.00019178,2]
[373376117,1752976247536,-480.0,0.00019178,2]
[373376118,1752976247545,-465.19796504,0.00019178,2]
[373376119,1752976247554,-467.84675825,0.00019178,2]
[373376120,1752976247563,-955.87,0.00019178,2]
[373376121,1752976247573,-151.0,0.00019178,2]
[373376122,1752976247582,-480.0,0.00019178,2]
[373376123,1752976247591,-261.592673,0.00019178,2]
[373376124,1752976247601,-468.31797964,0.00019178,2]
[373376125,1752976247610,-581.3558661,0.00019178,2]
[373376126,1752976247619,-175.43982,0.00019178,2]
[373376127,1752976247628,-480.0,0.00019178,2]
[373376128,1752976247638,-175.43982,0.00019178,2]
[373376129,1752976247647,-470.00151243,0.00019178,2]
[373376130,1752976247656,-175.43982,0.00019178,2]
[373376131,1752976247665,-471.81569612,0.00019178,2]
[373376132,1752976247675,-480.0,0.00019178,2]
[373376133,1752976247684,-175.43982,0.00019178,2]
[373376134,1752976247694,-175.43982,0.00019178,2]
[373376135,1752976247703,-175.43982,0.00019178,2]
[373376136,1752976247713,-175.43982,0.00019178,2]
[373376137,1752976247722,-463.40191712,0.00019178,2]
[373376138,1752976247731,-175.43982,0.00019178,2]
[373376139,1752976247740,-175.43982,0.00019178,2]
[373376140,1752976247750,-175.43982,0.00019178,2]
[373376141,1752976247759,-780.95,0.00019178,2]
[373376142,1752976247768,-480.0,0.00019178,2]
[373376143,1752976247778,-540.57,0.00019178,2]
[373376144,1752976247788,-175.43982,0.00019178,2]
[373376145,1752976247802,-368.36237099,0.00019178,2]
[373376146,1752976247812,-175.43982,0.00019178,2]
[373376147,1752976247822,-175.43982,0.00019178,2]
[373376148,1752976247832,-480.0,0.00019178,2]
[373376149,1752976247842,-175.43982,0.00019178,2]
[373376150,1752976247852,-2257.53,0.00019178,2]
[373376151,1752976247861,-505.29864265,0.00019178,2]
[373376152,1752976247871,-461.86245897,0.00019178,2]
[373376153,1752976247882,-480.0,0.00019178,2]
[373376154,1752976247893,-480.0,0.00019178,2]
[373376155,1752976247902,-480.0,0.00019178,2]
[373376156,1752976247912,-472.91375046,0.00019178,2]
[373376157,1752976247921,-480.0,0.00019178,2]
[373376158,1752976247931,-852.91,0.00019178,2]
[373376159,1752976247941,-480.0,0.00019178,2]
[373376160,1752976247951,-480.0,0.00019178,2]
[373376161,1752976247961,-480.0,0.00019178,2]
[373376162,1752976247970,-809.87,0.00019178,2]
[373376163,1752976247980,-466.84186481,0.00019178,2]
[373376164,1752976247990,-471.72417173,0.00019178,2]
[373376165,1752976248000,-2870.66,0.00019178,2]
[373376166,1752976248011,-151.0,0.00019178,2]
[373376167,1752976248020,-151.0,0.00019178,2]
[373376168,1752976248032,-480.0,0.00019178,2]
[373376169,1752976248043,-480.0,0.00019178,2]
[373376170,1752976248053,-1118.31,0.00019178,2]
[373376171,1752976248063,-151.0,0.00019178,2]
[373376172,1752976248073,-151.0,0.00019178,2]
[373376173,1752976248082,-151.0,0.00019178,2]
[373376174,1752976248092,-151.0,0.00019178,2]
[373376175,1752976248102,-151.0,0.00019178,2]
[373376176,1752976248113,-151.0,0.00019178,2]
[373376177,1752976248127,-480.0,0.00019178,2]
[373376178,1752976248136,-1015.72404436,0.00019178,2]
[373376179,1752976248146,-803.87,0.00019178,2]
[373376180,1752976248155,-740.37,0.00019178,2]
[373376181,1752976248165,-958.33,0.00019178,2]
[373376182,1752976248175,-463.80615743,0.00019178,2]
[373376183,1752976248185,-480.0,0.00019178,2]
[373376184,1752976248194,-504.19,0.00019178,2]
[373376185,1752976248204,-3397.86,0.00019178,2]
[373376186,1752976248214,-544.09669828,0.00019178,2]
[373376187,1752976248224,-504.81737639,0.00019178,2]
[373376188,1752976248233,-414.87919975,0.00019178,2]
[373376189,1752976248244,-463.06152145,0.00019178,2]
[373376190,1752976248253,-468.80474797,0.00019178,2]
[373376191,1752976248262,-480.0,0.00019178,2]
[373376192,1752976248272,-657.26,0.00019178,2]
[373376193,1752976248282,-480.0,0.00019178,2]
[373376194,1752976248291,-681.07,0.00019178,2]
[373376195,1752976248301,-480.0,0.00019178,2]
[373376196,1752976248311,-2540.68,0.00019178,2]
[373376197,1752976248320,-910.21,0.00019178,2]
[373376198,1752976248330,-1355.38,0.00019178,2]
[373376199,1752976248340,-718.35,0.00019178,2]
[373376200,1752976248350,-467.85663051,0.00019178,2]
[373376201,1752976248360,-480.0,0.00019178,2]
[373376202,1752976248370,-462.84030674,0.00019178,2]
[373376203,1752976248379,-480.0,0.00019178,2]
[373376204,1752976248389,-343.340407,0.00019178,2]
[373376205,1752976248399,-466.67057855,0.00019178,2]
[373376206,1752976248408,-343.340407,0.00019178,2]
[373376207,1752976248418,-343.340407,0.00019178,2]
[373376208,1752976248427,-463.73884152,0.00019178,2]
[373376209,1752976248518,-343.340407,0.00019178,2]
[373376210,1752976248528,-343.340407,0.00019178,2]
[373376211,1752976248538,-343.340407,0.00019178,2]
[373376212,1752976248548,-151.0,0.00019178,2]
[373376213,1752976248558,-343.340407,0.00019178,2]
[373376214,1752976248568,-151.0,0.00019178,2]
[373376215,1752976248578,-343.340407,0.00019178,2]
[373376216,1752976248588,-151.0,0.00019178,2]
[373376217,1752976248597,-151.0,0.00019178,2]
[373376218,1752976248606,-467.14532565,0.00019178,2]
[373376219,1752976248616,-343.340407,0.00019178,2]
[373376220,1752976248625,-343.340407,0.00019178,2]
[373376221,1752976248635,-480.0,0.00019178,2]
[373376222,1752976248644,-343.340407,0.00019178,2]
[373376223,1752976248654,-343.340407,0.00019178,2]
[373376224,1752976248663,-756.72,0.00019178,2]
[373376225,1752976248672,-343.340407,0.00019178,2]
[373376226,1752976248681,-343.340407,0.00019178,2]
[373376227,1752976248691,-343.340407,0.00019178,2]
[373376228,1752976248700,-466.54087074,0.00019178,2]
[373376229,1752976248710,-9103.88,0.00019178,2]
[373376230,1752976248719,-343.340407,0.00019178,2]
[373376231,1752976248729,-468.93501071,0.00019178,2]
[373376232,1752976248738,-2862.65,0.00019178,2]
[373376233,1752976248748,-4774.77,0.00019178,2]
[373376234,1752976248759,-1208.73,0.00019178,2]
[373376235,1752976248769,-526.73,0.00019178,2]
[373376236,1752976248779,-480.0,0.00019178,2]
[373376237,1752976248788,-477.8798222,0.00019178,2]
[373376238,1752976248798,-480.0,0.00019178,2]
[373376239,1752976248808,-466.72780193,0.00019178,2]
[373376240,1752976248817,-480.0,0.00019178,2]
[373376241,1752976248826,-472.04679003,0.00019178,2]
[373376242,1752976248835,-467.83142873,0.00019178,2]
[373376243,1752976248845,-590.22,0.00019178,2]
[373376244,1752976248855,-1838.65,0.00019178,2]
[373376245,1752976248866,-480.0,0.00019178,2]
[373376246,1752976248878,-480.0,0.00019178,2]
[373376247,1752976248892,-1636.51,0.00019178,2]
[373376248,1752976248902,-480.0,0.00019178,2]
[373376249,1752976248913,-480.0,0.00019178,2]
[373376250,1752976248923,-466.36033449,0.00019178,2]
[373376251,1752976248934,-480.0,0.00019178,2]
[373376252,1752976248944,-471.19891135,0.00019178,2]
[373376253,1752976248954,-1063.68,0.00019178,2]
[373376254,1752976248965,-480.0,0.00019178,2]
[373376255,1752976248975,-561.21,0.00019178,2]
[373376256,1752976248986,-478.21675721,0.00019178,2]
[373376257,1752976248996,-852.7,0.00019178,2]
[373376258,1752976249007,-466.16363653,0.00019178,2]
[373376259,1752976249020,-480.0,0.00019178,2]
[373376260,1752976249030,-569.95,0.00019178,2]
[373376261,1752976249039,-259.60289443,0.00019178,2]
[373376262,1752976249049,-6268.06,0.00019178,2]
[373376263,1752976249058,-1041.51,0.00019178,2]
[373376264,1752976249068,-480.0,0.00019178,2]
[373376265,1752976249077,-217.142254,0.00019178,2]
[373376266,1752976249087,-500.56,0.00019178,2]
[373376267,1752976249098,-493.90407566,0.00019178,2]
[373376268,1752976249109,-1298.99,0.00019178,2]
[373376269,1752976249119,-272.6989796,0.00019178,2]
[373376270,1752976249129,-281.62049114,0.00019178,2]
[373376271,1752976249141,-151.84846,0.00019178,2]
[373376272,1752976249153,-480.0,0.00019178,2]
[373376273,1752976249163,-666.13,0.00019178,2]
[373376274,1752976249174,-1948.59,0.00019178,2]
[373376275,1752976249185,-153.691284,0.00019178,2]
[373376276,1752976249196,-3960.08,0.00019178,2]
[373376277,1752976249206,-480.0,0.00019178,2]
[373376278,1752976249216,-480.0,0.00019178,2]
[373376279,1752976249226,-480.0,0.00019178,2]
[373376280,1752976249235,-480.0,0.00019178,2]
[373376281,1752976249244,-1291.96,0.00019178,2]
[373376282,1752976249253,-218.4257811,0.00019178,2]
[373376283,1752976249265,-1040.82,0.00019178,2]
[373376284,1752976249274,-1249.23,0.00019178,2]
[373376285,1752976249283,-1601.14,0.00019178,2]
[373376286,1752976249292,-241.20425224,0.00019178,2]
[373376287,1752976249301,-480.0,0.00019178,2]
[373376288,1752976249310,-696.63,0.00019178,2]
[373376289,1752976249319,-480.0,0.00019178,2]
[373376290,1752976249327,-1184.75,0.00019178,2]
[373376291,1752976249337,-463.25318819,0.00019178,2]
[373376292,1752976249346,-468.96622273,0.00019178,2]
[373376293,1752976249355,-480.0,0.00019178,2]
[373376294,1752976249364,-480.0,0.00019178,2]
[373376295,1752976249373,-880.33,0.00019178,2]
[373376296,1752976249382,-480.0,0.00019178,2]
[373376297,1752976249391,-646.35,0.00019178,2]
[373376298,1752976249399,-480.0,0.00019178,2]
[373376299,1752976249408,-151.54512,0.00019178,2]
[373376300,1752976249417,-880.58,0.00019178,2]
[373376301,1752976249426,-671.42,0.00019178,2]
[373376302,1752976249435,-461.83127008,0.00019178,2]
[373376303,1752976249445,-480.0,0.00019178,2]
[373376304,1752976249455,-480.0,0.00019178,2]
[373376305,1752976249464,-1525.79,0.00019178,2]
[373376306,1752976249474,-480.0,0.00019178,2]
[373376307,1752976249483,-1428.17,0.00019178,2]
[373376308,1752976249492,-460.69517108,0.00019178,2]
[373376309,1752976249502,-470.10180118,0.00019178,2]
[373376310,1752976249512,-1391.25,0.00019178,2]
[373376311,1752976249524,-1025.14,0.00019178,2]
[373376312,1752976249533,-601.74,0.00019178,2]
[373376313,1752976249543,-308.13008817,0.00019178,2]
[373376314,1752976249551,-528.84402925,0.00019178,2]
[373376315,1752976249561,-480.0,0.00019178,2]
[373376316,1752976249570,-1310.94,0.00019178,2]
[373376317,1752976249579,-725.67,0.00019178,2]
[373376318,1752976249588,-595.82,0.00019178,2]
[373376319,1752976249597,-473.25536423,0.00019178,2]
[373376320,1752976249606,-4527.03,0.00019178,2]
[373376321,1752976249615,-474.51716517,0.00019178,2]
[373376322,1752976249625,-2184.53,0.00019178,2]
[373376323,1752976249634,-2126.9,0.00019178,2]
[373376324,1752976249643,-467.7334986,0.00019178,2]
[373376325,1752976249652,-753.76,0.00019178,2]
[373376326,1752976249662,-475.19418227,0.00019178,2]
[373376327,1752976249671,-204.65419,0.00019178,2]
[373376328,1752976249680,-480.0,0.00019178,2]
[373376329,1752976249689,-480.0,0.00019178,2]
[373376330,1752976249698,-480.0,0.00019178,2]
[373376331,1752976249707,-151.0,0.00019178,2]
[373376332,1752976249716,-473.12643859,0.00019178,2]
[373376333,1752976249726,-151.0,0.00019178,2]
[373376334,1752976249735,-463.743275,0.00019178,2]
[373376335,1752976249744,-151.0,0.00019178,2]
[373376336,1752976249753,-464.20198238,0.00019178,2]
[373376337,1752976249764,-151.0,0.00019178,2]
[373376338,1752976249775,-1111.03,0.00019178,2]
[373376339,1752976249785,-231.281776,0.00019178,2]
[373376340,1752976249795,-1996.48,0.00019178,2]
[373376341,1752976249804,-480.0,0.00019178,2]
[373376342,1752976249814,-471.04983621,0.00019178,2]
[373376343,1752976249823,-493.91,0.00019178,2]
[373376344,1752976249833,-1367.45,0.00019178,2]
[373376345,1752976249842,-480.0,0.00019178,2]
[373376346,1752976249851,-1080.26,0.00019178,2]
[373376347,1752976249860,-151.0,0.00019178,2]
[373376348,1752976249869,-151.0,0.00019178,2]
[373376349,1752976249878,-151.0,0.00019178,2]
[373376350,1752976249889,-151.0,0.00019178,2]
[373376351,1752976249903,-151.0,0.00019178,2]
[373376352,1752976249912,-2492.25,0.00019178,2]
[373376353,1752976249922,-151.0,0.00019178,2]
[373376354,1752976249931,-480.0,0.00019178,2]
[373376355,1752976249939,-480.0,0.00019178,2]
[373376356,1752976249948,-151.0,0.00019178,2]
[373376357,1752976249958,-912.59,0.00019178,2]
[373376358,1752976249967,-480.0,0.00019178,2]
[373376359,1752976249976,-799.59,0.00019178,2]
[373376360,1752976249985,-277.73259755,0.00019178,2]
[373376361,1752976249994,-480.0,0.00019178,2]
[373376362,1752976250003,-150.0,0.00019178,2]
[373376363,1752976250013,-1094.62,0.00019178,2]
[373376364,1752976250024,-473.87628459,0.00019178,2]
[373376365,1752976250033,-615.47,0.00019178,2]
[373376366,1752976250041,-151.0,0.00019178,2]
[373376367,1752976250051,-623.82,0.00019178,2]
[373376368,1752976250059,-465.80530695,0.00019178,2]
[373376369,1752976250068,-151.0,0.00019178,2]
[373376370,1752976250077,-480.0,0.00019178,2]
[373376371,1752976250086,-1838.11,0.00019178,2]
[373376372,1752976250095,-151.0,0.00019178,2]
[373376373,1752976250104,-151.0,0.00019178,2]
[373376374,1752976250113,-151.0,0.00019178,2]
[373376375,1752976250122,-151.0,0.00019178,2]
[373376376,1752976250131,-477.11190422,0.00019178,2]
[373376377,1752976250140,-151.0,0.00019178,2]
[373376378,1752976250149,-215.45717758,0.00019178,2]
[373376379,1752976250159,-282.685035,0.00019178,2]
[373376380,1752976250168,-940.07,0.00019178,2]
[373376381,1752976250177,-471.68745752,0.00019178,2]
[373376382,1752976250186,-151.0,0.00019178,2]
[373376383,1752976250195,-282.685035,0.00019178,2]
[373376384,1752976250205,-480.0,0.00019178,2]
[373376385,1752976250214,-282.685035,0.00019178,2]
[373376386,1752976250223,-151.0,0.00019178,2]
[373376387,1752976250232,-282.685035,0.00019178,2]
[373376388,1752976250242,-151.0,0.00019178,2]
[373376389,1752976250251,-282.685035,0.00019178,2]
[373376390,1752976250259,-262.06578,0.00019178,2]
[373376391,1752976250274,-282.685035,0.00019178,2]
[373376392,1752976250284,-282.685035,0.00019178,2]
[373376393,1752976250293,-828.57,0.00019178,2]
[373376394,1752976250303,-1831.8,0.00019178,2]
[373376395,1752976250312,-282.685035,0.00019178,2]
[373376396,1752976250321,-474.86853496,0.00019178,2]
[373376397,1752976250330,-468.73110746,0.00019178,2]
[373376398,1752976250339,-530.44,0.00019178,2]
[373376399,1752976250348,-282.685035,0.00019178,2]
[373376400,1752976250358,-282.685035,0.00019178,2]
[373376401,1752976250367,-282.685035,0.00019178,2]
[373376402,1752976250376,-282.685035,0.00019178,2]
[373376403,1752976250385,-282.685035,0.00019178,2]
[373376404,1752976250394,-780.91,0.00019178,2]
[373376405,1752976250404,-3807.6,0.00019178,2]
[373376406,1752976250413,-282.685035,0.00019178,2]
[373376407,1752976250422,-480.0,0.00019178,2]
[373376408,1752976250431,-1090.39,0.00019178,2]
[373376409,1752976250442,-817.08,0.00019178,2]
[373376410,1752976250451,-1199.84,0.00019178,2]
[373376411,1752976250460,-1353.58,0.00019178,2]
[373376412,1752976250469,-472.26070747,0.00019178,2]
[373376413,1752976250478,-1586.5,0.00019178,2]
[373376414,1752976250487,-465.67144515,0.00019178,2]
[373376415,1752976250496,-3572.48,0.00019178,2]
[373376416,1752976250505,-169.71053593,0.00019178,2]
[373376417,1752976250516,-469.09282719,0.00019178,2]
[373376418,1752976250526,-480.0,0.00019178,2]
[373376419,1752976250535,-1060.07,0.00019178,2]
[373376420,1752976250544,-480.0,0.00019178,2]
[373376421,1752976250553,-593.71,0.00019178,2]
[373376422,1752976250563,-467.9397304,0.00019178,2]
[373376423,1752976250572,-563.35,0.00019178,2]
[373376424,1752976250581,-468.39321488,0.00019178,2]
[373376425,1752976250590,-2678.64,0.00019178,2]
[373376426,1752976250599,-3199.5,0.00019178,2]
[373376427,1752976250609,-151.0,0.00019178,2]
[373376428,1752976250618,-1809.22,0.00019178,2]
[373376429,1752976250627,-151.0,0.00019178,2]
[373376430,1752976250636,-151.0,0.00019178,2]
[373376431,1752976250645,-480.0,0.00019178,2]
[373376432,1752976250658,-151.0,0.00019178,2]
[373376433,1752976250667,-658.01,0.00019178,2]
[373376434,1752976250676,-151.0,0.00019178,2]
[373376435,1752976250685,-151.0,0.00019178,2]
[373376436,1752976250699,-151.0,0.00019178,2]
[373376437,1752976250708,-417.80106812,0.00019178,2]
[373376438,1752976250717,-480.0,0.00019178,2]
[373376439,1752976250726,-468.87365133,0.00019178,2]
[373376440,1752976250735,-151.987483,0.00019178,2]
[373376441,1752976250744,-486.49,0.00019178,2]
[373376442,1752976250754,-469.20497691,0.00019178,2]
[373376443,1752976250765,-480.0,0.00019178,2]
[373376444,1752976250774,-1498.77,0.00019178,2]
[373376445,1752976250783,-474.80741344,0.00019178,2]
[373376446,1752976250792,-502.09,0.00019178,2]
[373376447,1752976250801,-2493.97,0.00019178,2]
[373376448,1752976250810,-1075.2,0.00019178,2]
[373376449,1752976250819,-480.0,0.00019178,2]
[373376450,1752976250828,-480.0,0.00019178,2]
[373376451,1752976250838,-480.0,0.00019178,2]
[373376452,1752976250847,-480.0,0.00019178,2]
[373376453,1752976250855,-25128.97,0.00019178,2]
[373376454,1752976250866,-480.0,0.00019178,2]
[373376455,1752976250876,-480.0,0.00019178,2]
[373376456,1752976250886,-480.0,0.00019178,2]
[373376457,1752976250897,-1177.13,0.00019178,2]
[373376458,1752976250906,-480.0,0.00019178,2]
[373376459,1752976250915,-480.0,0.00019178,2]
[373376460,1752976250924,-907.248053,0.00019178,2]
[373376461,1752976250934,-907.248053,0.00019178,2]
[373376462,1752976250944,-907.248053,0.00019178,2]
[373376463,1752976250953,-480.0,0.00019178,2]
[373376464,1752976250962,-907.248053,0.00019178,2]
[373376465,1752976250971,-846.85,0.00019178,2]
[373376466,1752976250981,-907.248053,0.00019178,2]
[373376467,1752976250990,-907.248053,0.00019178,2]
[373376468,1752976251000,-907.248053,0.00019178,2]
[373376469,1752976251009,-480.0,0.00019178,2]
[373376470,1752976251021,-2908.89,0.00019178,2]
[373376471,1752976251030,-1121.62,0.00019178,2]
[373376472,1752976251039,-907.248053,0.00019178,2]
[373376473,1752976251048,-635.26,0.00019178,2]
[373376474,1752976251057,-907.248053,0.00019178,2]
[373376475,1752976251066,-907.248053,0.00019178,2]
[373376476,1752976251076,-907.248053,0.00019178,2]
[373376477,1752976251085,-480.0,0.00019178,2]
[373376478,1752976251094,-907.248053,0.00019178,2]
[373376479,1752976251103,-907.248053,0.00019178,2]
[373376480,1752976251112,-475.70503313,0.00019178,2]
[373376481,1752976251121,-907.248053,0.00019178,2]
[373376482,1752976251131,-469.05386282,0.00019178,2]
[373376483,1752976251139,-480.0,0.00019178,2]
[373376484,1752976251149,-431.1585534,0.00019178,2]
[373376485,1752976251158,-1290.05,0.00019178,2]
[373376486,1752976251168,-151.0,0.00019178,2]
[373376487,1752976251177,-151.0,0.00019178,2]
[373376488,1752976251186,-296.727203,0.00019178,2]
[373376489,1752976251196,-1150.09,0.00019178,2]
[373376490,1752976251205,-480.0,0.00019178,2]
[373376491,1752976251215,-592.93,0.00019178,2]
[373376492,1752976251224,-659.62,0.00019178,2]
[373376493,1752976251233,-480.0,0.00019178,2]
[373376494,1752976251243,-659.62,0.00019178,2]
[373376495,1752976251252,-480.0,0.00019178,2]
[373376496,1752976251261,-659.62,0.00019178,2]
[373376497,1752976251272,-659.62,0.00019178,2]
[373376498,1752976251282,-480.0,0.00019178,2]
[373376499,1752976251291,-480.0,0.00019178,2]
[373376500,1752976251300,-489.48662098,0.00019178,2]
[373376501,1752976251309,-1047.91,0.00019178,2]
[373376502,1752976251319,-3391.53,0.00019178,2]
[373376503,1752976251328,-539.27772587,0.00019178,2]
[373376504,1752976251338,-740.5,0.00019178,2]
[373376505,1752976251348,-1383.0,0.00019178,2]
[373376506,1752976251357,-464.87808212,0.00019178,2]
[373376507,1752976251367,-480.0,0.00019178,2]
[373376508,1752976251377,-480.0,0.00019178,2]
[373376509,1752976251387,-666.72,0.00019178,2]
[373376510,1752976251396,-1496.16,0.00019178,2]
[373376511,1752976251406,-480.0,0.00019178,2]
[373376512,1752976251416,-1167.58,0.00019178,2]
[373376513,1752976251426,-832.52,0.00019178,2]
[373376514,1752976251435,-6377.87,0.00019178,2]
[373376515,1752976251445,-480.0,0.00019178,2]
[373376516,1752976251455,-719.21,0.00019178,2]
[373376517,1752976251465,-1878.82,0.00019178,2]
[373376518,1752976251475,-480.0,0.00019178,2]
[373376519,1752976251484,-461.65485461,0.00019178,2]
[373376520,1752976251493,-509.08,0.00019178,2]
[373376521,1752976251503,-465.45009439,0.00019178,2]
[373376522,1752976251511,-151.0,0.00019178,2]
[373376523,1752976251521,-262.81,0.00019178,2]
[373376524,1752976251531,-209480.42538993,0.00019178,2]
[373376525,1752976251540,-151.0,0.00019178,2]
[373376526,1752976251549,-151.0,0.00019178,2]
[373376527,1752976251559,-156.057459,0.00019178,2]
[373376528,1752976251568,-1710.6259237,0.00019178,2]
[373376529,1752976251578,-25594.14148649,0.00019178,2]
[373376530,1752976251587,-199.09789,0.00019181,2]
[373376531,1752976251597,-199.09789,0.00019181,2]
[373376532,1752976251607,-151.0,0.00019181,2]
[373376533,1752976251616,-151.0,0.00019181,2]
[373376534,1752976251626,-151.0,0.00019181,2]
[373376535,1752976251635,-151.0,0.00019181,2]
[373376536,1752976251645,-189.096445,0.00019181,2]
[373376537,1752976251655,-189.096445,0.00019181,2]
[373376538,1752976251664,-151.0,0.00019181,2]
[373376539,1752976251674,-158.615586,0.00019181,2]
[373376540,1752976251684,-158.615586,0.00019181,2]
[373376541,1752976251694,-236.43036905,0.00019187,2]
[373376542,1752976251704,-1680.0,0.00019191,2]
[373376543,1752976251713,-151.0,0.000192,2]
[373376544,1752976251723,-151.0,0.000192,2]
[373376545,1752976251733,-168.382688,0.000192,2]
[373376546,1752976251742,-168.382688,0.000192,2]
[373376547,1752976251752,-171.847379,0.000192,2]
[373376548,1752976251762,-171.847379,0.000192,2]
[373376549,1752976251773,-225.804267,0.000192,2]
[373376550,1752976251783,-225.804267,0.000192,2]
[373376551,1752976251792,-1386.02,0.000192,2]
[373376552,1752976251800,-659.62,0.000192,2]